[Event "Titled Tuesday Blitz January 17 Early 2023"]
[White "Dvirnyy, Danyyil"]
[Black "Lehtosaari, Mauri"]
[WhiteFideId "817570"]
[BlackFideId "501999"]
[WhiteElo "2541"]
[BlackElo "2176"]
[Result "0-1"]
[Round "05"]
[TimeControl "180+2"]
[Date "2023.01.17"]
[WhiteClock "0:02:09"]
[BlackClock "0:02:04"]

1. d4 {[%clk 0:03:00]}  d5 {[%clk 0:02:53]} 2. c4 {[%clk 0:03:01]}  c6 {[%clk 0:02:53]} 3. Nf3 {[%clk 0:03:01]}  Nf6 {[%clk 0:02:53]} 4. e3 {[%clk 0:03:01]}  Bg4 {[%clk 0:02:52]} 5. Nc3 {[%clk 0:03:00]}  e6 {[%clk 0:02:47]} 6. h3 {[%clk 0:03:01]}  Bh5 {[%clk 0:02:33]} 7. g4 {[%clk 0:03:01]}  Bg6 {[%clk 0:02:33]} 8. Ne5 {[%clk 0:03:01]}  Nfd7 {[%clk 0:02:32]} 9. Nxg6 {[%clk 0:02:58]}  hxg6 {[%clk 0:02:32]} 10. Bd2 {[%clk 0:02:51]}  a5 {[%clk 0:02:14]} 11. Qb3 {[%clk 0:02:18]}  Qb6 {[%clk 0:02:06]} 12. Qa3 {[%clk 0:02:09]}  Bxa3 {[%clk 0:02:04]} 0-1


[Site "https://www.chess.com"]

[Event "Titled Tuesday Blitz January 17 Early 2023"]
[White "Buksa, Nataliya"]
[Black "Cherniaiev, Tykhon"]
[WhiteFideId "14123622"]
[BlackFideId "14182360"]
[WhiteElo "2406"]
[BlackElo "2330"]
[Result "0-1"]
[Round "05"]
[TimeControl "180+2"]
[Date "2023.01.17"]
[WhiteClock "0:00:02"]
[BlackClock "0:00:02"]

1. d4 {[%clk 0:02:54]}  Nf6 {[%clk 0:02:59]} 2. Nc3 {[%clk 0:02:50]}  d5 {[%clk 0:02:59]} 3. Bf4 {[%clk 0:02:49]}  a6 {[%clk 0:02:53]} 4. e3 {[%clk 0:02:49]}  c5 {[%clk 0:02:53]} 5. Nf3 {[%clk 0:02:49]}  Nc6 {[%clk 0:02:53]} 6. dxc5 {[%clk 0:02:49]}  e6 {[%clk 0:02:53]} 7. Bd3 {[%clk 0:02:46]}  Bxc5 {[%clk 0:02:53]} 8. O-O {[%clk 0:02:47]}  Bd6 {[%clk 0:02:48]} 9. Bxd6 {[%clk 0:02:46]}  Qxd6 {[%clk 0:02:49]} 10. e4 {[%clk 0:02:47]}  d4 {[%clk 0:02:46]} 11. Ne2 {[%clk 0:02:45]}  e5 {[%clk 0:02:46]} 12. h3 {[%clk 0:02:45]}  O-O {[%clk 0:02:45]} 13. Ng3 {[%clk 0:02:45]}  Be6 {[%clk 0:02:45]} 14. Nh4 {[%clk 0:02:44]}  Ne7 {[%clk 0:02:43]} 15. Qd2 {[%clk 0:02:43]}  Ng6 {[%clk 0:02:25]} 16. Nhf5 {[%clk 0:02:39]}  Bxf5 {[%clk 0:02:05]} 17. Nxf5 {[%clk 0:02:38]}  Qc6 {[%clk 0:02:02]} 18. Rae1 {[%clk 0:02:34]}  Rae8 {[%clk 0:01:44]} 19. g3 {[%clk 0:02:34]}  Ne7 {[%clk 0:01:36]} 20. Nh4 {[%clk 0:02:18]}  Ng6 {[%clk 0:01:35]} 21. Ng2 {[%clk 0:02:17]}  b5 {[%clk 0:01:26]} 22. a3 {[%clk 0:02:14]}  Kh8 {[%clk 0:01:18]} 23. Qe2 {[%clk 0:02:06]}  Qc8 {[%clk 0:01:11]} 24. Kh2 {[%clk 0:02:04]}  Qc6 {[%clk 0:01:06]} 25. h4 {[%clk 0:02:01]}  Rg8 {[%clk 0:00:58]} 26. h5 {[%clk 0:01:58]}  Nf8 {[%clk 0:00:55]} 27. Nh4 {[%clk 0:01:58]}  h6 {[%clk 0:00:47]} 28. f4 {[%clk 0:01:57]}  exf4 {[%clk 0:00:45]} 29. gxf4 {[%clk 0:01:57]}  Ne6 {[%clk 0:00:35]} 30. e5 {[%clk 0:01:55]}  Nc5 {[%clk 0:00:33]} 31. Bf5 {[%clk 0:01:49]}  Nd5 {[%clk 0:00:31]} 32. Qf3 {[%clk 0:01:39]}  Ne7 {[%clk 0:00:30]} 33. Qxc6 {[%clk 0:01:05]}  Nxc6 {[%clk 0:00:31]} 34. b4 {[%clk 0:01:02]}  Ne6 {[%clk 0:00:30]} 35. Rd1 {[%clk 0:01:00]}  Rd8 {[%clk 0:00:26]} 36. Bxe6 {[%clk 0:00:42]}  fxe6 {[%clk 0:00:27]} 37. Ng6+ {[%clk 0:00:43]}  Kh7 {[%clk 0:00:27]} 38. Rd3 {[%clk 0:00:42]}  Rge8 {[%clk 0:00:25]} 39. Rfd1 {[%clk 0:00:41]}  Rd7 {[%clk 0:00:23]} 40. Kg3 {[%clk 0:00:31]}  Rc8 {[%clk 0:00:23]} 41. c3 {[%clk 0:00:29]}  Rcd8 {[%clk 0:00:22]} 42. f5 {[%clk 0:00:15]}  exf5 {[%clk 0:00:15]} 43. e6 {[%clk 0:00:08]}  Rd6 {[%clk 0:00:13]} 44. Nf4 {[%clk 0:00:07]}  Re8 {[%clk 0:00:06]} 45. cxd4 {[%clk 0:00:07]}  Ne7 {[%clk 0:00:05]} 46. d5 {[%clk 0:00:07]}  Rc8 {[%clk 0:00:04]} 47. R1d2 {[%clk 0:00:06]}  Rc4 {[%clk 0:00:05]} 48. Ng6 {[%clk 0:00:05]}  Rg4+ {[%clk 0:00:04]} 49. Kf3 {[%clk 0:00:04]}  Ng8 {[%clk 0:00:02]} 50. e7 {[%clk 0:00:02]}  Re4 {[%clk 0:00:02]} 51. Re2 {[%clk 0:00:02]}  Nf6 {[%clk 0:00:02]} 0-1


[Site "https://www.chess.com"]

[Event "Titled Tuesday Blitz January 17 Early 2023"]
[White "Lagno, Kateryna"]
[Black "Santos Flores, Alberto"]
[WhiteFideId "14109336"]
[BlackFideId "3601234"]
[WhiteElo "2558"]
[BlackElo "2164"]
[Result "1/2-1/2"]
[Round "05"]
[TimeControl "180+2"]
[Date "2023.01.17"]
[WhiteClock "0:00:14"]
[BlackClock "0:00:04"]

1. e4 {[%clk 0:03:00]}  e6 {[%clk 0:02:55]} 2. d4 {[%clk 0:03:00]}  d5 {[%clk 0:02:55]} 3. e5 {[%clk 0:03:01]}  c5 {[%clk 0:02:56]} 4. c3 {[%clk 0:03:01]}  Qb6 {[%clk 0:02:56]} 5. Nf3 {[%clk 0:03:01]}  Nc6 {[%clk 0:02:56]} 6. a3 {[%clk 0:02:59]}  a5 {[%clk 0:02:56]} 7. Bd3 {[%clk 0:02:47]}  Bd7 {[%clk 0:02:54]} 8. Bc2 {[%clk 0:02:45]}  a4 {[%clk 0:02:46]} 9. O-O {[%clk 0:02:44]}  Nh6 {[%clk 0:02:46]} 10. Re1 {[%clk 0:02:25]}  Nf5 {[%clk 0:02:39]} 11. Bxa4 {[%clk 0:02:19]}  Nxe5 {[%clk 0:02:36]} 12. Nxe5 {[%clk 0:02:11]}  Bxa4 {[%clk 0:02:36]} 13. Qf3 {[%clk 0:02:10]}  cxd4 {[%clk 0:02:08]} 14. cxd4 {[%clk 0:02:00]}  Be7 {[%clk 0:02:01]} 15. Nc3 {[%clk 0:01:57]}  Bc6 {[%clk 0:01:48]} 16. Nxf7 {[%clk 0:01:35]}  O-O {[%clk 0:01:31]} 17. Ng5 {[%clk 0:01:27]}  Nxd4 {[%clk 0:01:25]} 18. Qd3 {[%clk 0:01:24]}  Bxg5 {[%clk 0:01:25]} 19. Bxg5 {[%clk 0:01:25]}  Nb3 {[%clk 0:01:13]} 20. Rad1 {[%clk 0:01:10]}  Qxf2+ {[%clk 0:01:12]} 21. Kh1 {[%clk 0:01:11]}  Nc5 {[%clk 0:01:09]} 22. Qd4 {[%clk 0:01:04]}  Qxd4 {[%clk 0:01:04]} 23. Rxd4 {[%clk 0:01:05]}  Rf2 {[%clk 0:00:57]} 24. b4 {[%clk 0:00:54]}  Rxa3 {[%clk 0:00:43]} 25. Nb1 {[%clk 0:00:45]}  Raa2 {[%clk 0:00:12]} 26. bxc5 {[%clk 0:00:44]}  Rxg2 {[%clk 0:00:12]} 27. Bf4 {[%clk 0:00:44]}  g5 {[%clk 0:00:12]} 28. Be5 {[%clk 0:00:43]}  Rac2 {[%clk 0:00:10]} 29. Na3 {[%clk 0:00:34]}  Ra2 {[%clk 0:00:09]} 30. Bg3 {[%clk 0:00:31]}  Rgb2 {[%clk 0:00:07]} 31. Re3 {[%clk 0:00:20]}  Ra1+ {[%clk 0:00:07]} 32. Be1 {[%clk 0:00:20]}  Rba2 {[%clk 0:00:04]} 33. Rxe6 {[%clk 0:00:13]}  Rxa3 {[%clk 0:00:03]} 34. Re5 {[%clk 0:00:11]}  R3a2 {[%clk 0:00:03]} 35. Rxg5+ {[%clk 0:00:11]}  Kf7 {[%clk 0:00:04]} 36. Rg1 {[%clk 0:00:12]}  Re2 {[%clk 0:00:03]} 37. Bg3 {[%clk 0:00:12]}  Rxg1+ {[%clk 0:00:03]} 38. Kxg1 {[%clk 0:00:13]}  Re4 {[%clk 0:00:04]} 39. Rxe4 {[%clk 0:00:13]}  dxe4 {[%clk 0:00:04]} 40. Kf2 {[%clk 0:00:14]}  Ke6 {[%clk 0:00:05]} 41. Ke3 {[%clk 0:00:15]}  Kd5 {[%clk 0:00:06]} 42. Bd6 {[%clk 0:00:14]}  Kc4 {[%clk 0:00:06]} 43. Bf8 {[%clk 0:00:14]}  Kd5 {[%clk 0:00:05]} 44. Be7 {[%clk 0:00:14]}  Ke6 {[%clk 0:00:05]} 45. Bf8 {[%clk 0:00:15]}  Kf7 {[%clk 0:00:05]} 46. Bd6 {[%clk 0:00:15]}  Ke6 {[%clk 0:00:05]} 47. Bf8 {[%clk 0:00:16]}  Kd7 {[%clk 0:00:05]} 48. Kd4 {[%clk 0:00:15]}  h5 {[%clk 0:00:05]} 49. Ke3 {[%clk 0:00:15]}  Ke6 {[%clk 0:00:05]} 50. Kd4 {[%clk 0:00:15]}  Kf7 {[%clk 0:00:05]} 51. Bd6 {[%clk 0:00:14]}  Ke6 {[%clk 0:00:05]} 52. Bf8 {[%clk 0:00:14]}  Kd7 {[%clk 0:00:05]} 53. Ke3 {[%clk 0:00:15]}  Ke8 {[%clk 0:00:04]} 54. Bd6 {[%clk 0:00:14]}  Kd8 {[%clk 0:00:05]} 55. h4 {[%clk 0:00:13]}  Kd7 {[%clk 0:00:05]} 56. Bf8 {[%clk 0:00:13]}  Ke6 {[%clk 0:00:05]} 57. Kd4 {[%clk 0:00:13]}  Kf5 {[%clk 0:00:05]} 58. Ke3 {[%clk 0:00:14]}  Kg4 {[%clk 0:00:05]} 59. Be7 {[%clk 0:00:14]}  Kf5 {[%clk 0:00:05]} 60. Bd8 {[%clk 0:00:13]}  Ke6 {[%clk 0:00:04]} 61. Kd4 {[%clk 0:00:13]}  Kd7 {[%clk 0:00:03]} 62. Bg5 {[%clk 0:00:13]}  Ke6 {[%clk 0:00:03]} 63. Ke3 {[%clk 0:00:13]}  Kd5 {[%clk 0:00:03]} 64. Be7 {[%clk 0:00:13]}  Kc4 {[%clk 0:00:03]} 65. Bf8 {[%clk 0:00:14]}  Kd5 {[%clk 0:00:03]} 66. Be7 {[%clk 0:00:14]}  Ke6 {[%clk 0:00:03]} 67. Bg5 {[%clk 0:00:14]}  Kd5 {[%clk 0:00:04]} 68. Be7 {[%clk 0:00:14]} 1/2-1/2


[Site "https://www.chess.com"]

[Event "Titled Tuesday Blitz January 17 Early 2023"]
[White "Agasarov, Benik"]
[Black "Tomaszewski, Kacper"]
[WhiteFideId "13314823"]
[BlackFideId "1127373"]
[WhiteElo "2235"]
[BlackElo "2313"]
[Result "1-0"]
[Round "05"]
[TimeControl "180+2"]
[Date "2023.01.17"]
[WhiteClock "0:00:58"]
[BlackClock "0:00:42"]

1. d4 {[%clk 0:03:00]}  d5 {[%clk 0:02:59]} 2. c4 {[%clk 0:02:57]}  e6 {[%clk 0:02:59]} 3. Nc3 {[%clk 0:02:57]}  Nf6 {[%clk 0:02:58]} 4. cxd5 {[%clk 0:02:58]}  Nxd5 {[%clk 0:02:57]} 5. Nf3 {[%clk 0:02:54]}  c5 {[%clk 0:02:53]} 6. e3 {[%clk 0:02:54]}  Nxc3 {[%clk 0:02:48]} 7. bxc3 {[%clk 0:02:54]}  Qc7 {[%clk 0:02:48]} 8. Bd2 {[%clk 0:02:31]}  Nd7 {[%clk 0:02:46]} 9. Bd3 {[%clk 0:02:31]}  Be7 {[%clk 0:02:41]} 10. O-O {[%clk 0:02:31]}  O-O {[%clk 0:02:41]} 11. e4 {[%clk 0:02:31]}  b6 {[%clk 0:02:35]} 12. d5 {[%clk 0:02:15]}  Bd6 {[%clk 0:02:29]} 13. c4 {[%clk 0:02:13]}  Ba6 {[%clk 0:02:16]} 14. h3 {[%clk 0:02:01]}  Rae8 {[%clk 0:02:15]} 15. Qa4 {[%clk 0:02:00]}  Qb7 {[%clk 0:02:11]} 16. Bc3 {[%clk 0:01:53]}  exd5 {[%clk 0:02:05]} 17. exd5 {[%clk 0:01:53]}  Ne5 {[%clk 0:02:04]} 18. Nxe5 {[%clk 0:01:38]}  Bxe5 {[%clk 0:02:05]} 19. Rae1 {[%clk 0:01:39]}  b5 {[%clk 0:01:46]} 20. cxb5 {[%clk 0:01:37]}  Bxc3 {[%clk 0:01:46]} 21. bxa6 {[%clk 0:01:37]}  Qb8 {[%clk 0:01:38]} 22. Bxh7+ {[%clk 0:01:24]}  Kxh7 {[%clk 0:01:31]} 23. Qc2+ {[%clk 0:01:22]}  Kg8 {[%clk 0:01:17]} 24. Qxc3 {[%clk 0:01:20]}  Qd6 {[%clk 0:01:16]} 25. Qc4 {[%clk 0:01:17]}  Rb8 {[%clk 0:01:13]} 26. Rb1 {[%clk 0:01:12]}  Rfd8 {[%clk 0:01:08]} 27. Rxb8 {[%clk 0:01:11]}  Rxb8 {[%clk 0:01:09]} 28. Rc1 {[%clk 0:01:10]}  Rb6 {[%clk 0:00:41]} 29. Qxc5 {[%clk 0:01:09]}  Rxa6 {[%clk 0:00:42]} 30. Qc8+ {[%clk 0:00:58]}  Kh7 {[%clk 0:00:42]} 31. Qf5+ {[%clk 0:00:58]}  Qg6 {[%clk 0:00:41]} 32. Qxg6+ {[%clk 0:00:58]}  Kxg6 {[%clk 0:00:42]} 33. Rc6+ {[%clk 0:00:58]} 1-0


[Site "https://www.chess.com"]

[Event "Titled Tuesday Blitz January 17 Early 2023"]
[White "Lewtak, Damian"]
[Black "Nguyen Hong Nhung"]
[WhiteFideId "1141724"]
[BlackFideId "12412201"]
[WhiteElo "2381"]
[BlackElo "2003"]
[Result "0-1"]
[Round "05"]
[TimeControl "180+2"]
[Date "2023.01.17"]
[WhiteClock "0:00:34"]
[BlackClock "0:00:25"]

1. e4 {[%clk 0:02:55]}  c5 {[%clk 0:02:59]} 2. Nf3 {[%clk 0:02:55]}  e6 {[%clk 0:03:00]} 3. d3 {[%clk 0:02:54]}  Nc6 {[%clk 0:03:00]} 4. Nbd2 {[%clk 0:02:55]}  d5 {[%clk 0:03:00]} 5. g3 {[%clk 0:02:55]}  Nf6 {[%clk 0:02:59]} 6. Bg2 {[%clk 0:02:56]}  Be7 {[%clk 0:03:00]} 7. O-O {[%clk 0:02:56]}  O-O {[%clk 0:03:01]} 8. Qe2 {[%clk 0:02:56]}  b5 {[%clk 0:03:00]} 9. h4 {[%clk 0:02:56]}  c4 {[%clk 0:02:55]} 10. e5 {[%clk 0:02:56]}  Nd7 {[%clk 0:02:55]} 11. d4 {[%clk 0:02:55]}  b4 {[%clk 0:02:50]} 12. c3 {[%clk 0:02:56]}  a5 {[%clk 0:02:47]} 13. h5 {[%clk 0:02:53]}  Re8 {[%clk 0:02:40]} 14. Nh2 {[%clk 0:02:53]}  Qb6 {[%clk 0:02:22]} 15. h6 {[%clk 0:02:51]}  g6 {[%clk 0:02:18]} 16. Ndf3 {[%clk 0:02:51]}  a4 {[%clk 0:02:13]} 17. a3 {[%clk 0:02:50]}  bxc3 {[%clk 0:02:06]} 18. bxc3 {[%clk 0:02:50]}  Na5 {[%clk 0:02:02]} 19. Bg5 {[%clk 0:02:49]}  Bf8 {[%clk 0:02:00]} 20. Qe3 {[%clk 0:02:47]}  Nb3 {[%clk 0:01:57]} 21. Ra2 {[%clk 0:02:46]}  Qa5 {[%clk 0:01:48]} 22. Ng4 {[%clk 0:02:46]}  Rb8 {[%clk 0:01:43]} 23. Re1 {[%clk 0:02:26]}  Qb5 {[%clk 0:01:40]} 24. Qf4 {[%clk 0:02:23]}  Na5 {[%clk 0:01:29]} 25. Nf6+ {[%clk 0:02:21]}  Nxf6 {[%clk 0:01:28]} 26. Bxf6 {[%clk 0:02:18]}  Qb3 {[%clk 0:01:23]} 27. Qd2 {[%clk 0:02:16]}  Bxa3 {[%clk 0:01:12]} 28. Rxa3 {[%clk 0:02:14]}  Qxa3 {[%clk 0:01:13]} 29. Qf4 {[%clk 0:02:15]}  Nc6 {[%clk 0:01:02]} 30. Ng5 {[%clk 0:02:05]}  Ne7 {[%clk 0:00:46]} 31. Bxe7 {[%clk 0:01:29]}  Qxe7 {[%clk 0:00:47]} 32. Ra1 {[%clk 0:01:29]}  a3 {[%clk 0:00:46]} 33. Nf3 {[%clk 0:01:19]}  Rb2 {[%clk 0:00:40]} 34. Qc1 {[%clk 0:01:03]}  Bd7 {[%clk 0:00:34]} 35. Nh2 {[%clk 0:01:02]}  Reb8 {[%clk 0:00:31]} 36. Ng4 {[%clk 0:01:00]}  a2 {[%clk 0:00:25]} 37. Nf6+ {[%clk 0:00:54]}  Qxf6 {[%clk 0:00:23]} 38. exf6 {[%clk 0:00:55]}  Rb1 {[%clk 0:00:24]} 39. Qxb1 {[%clk 0:00:34]}  axb1=Q+ {[%clk 0:00:25]} 0-1


[Site "https://www.chess.com"]

[Event "Titled Tuesday Blitz January 17 Early 2023"]
[White "Atakhan, Abtin"]
[Black "Kukula, Pawel"]
[WhiteFideId "22502203"]
[BlackFideId "1115081"]
[WhiteElo "2422"]
[BlackElo "2135"]
[Result "1/2-1/2"]
[Round "05"]
[TimeControl "180+2"]
[Date "2023.01.17"]
[WhiteClock "0:00:05"]
[BlackClock "0:00:05"]

1. c4 {[%clk 0:03:00]}  Nf6 {[%clk 0:02:59]} 2. Nf3 {[%clk 0:02:58]}  g6 {[%clk 0:02:53]} 3. g3 {[%clk 0:02:59]}  Bg7 {[%clk 0:02:53]} 4. Bg2 {[%clk 0:03:00]}  O-O {[%clk 0:02:54]} 5. O-O {[%clk 0:03:00]}  d6 {[%clk 0:02:55]} 6. Nc3 {[%clk 0:03:00]}  Nc6 {[%clk 0:02:54]} 7. d4 {[%clk 0:02:57]}  Bg4 {[%clk 0:02:53]} 8. h3 {[%clk 0:02:53]}  Bxf3 {[%clk 0:02:52]} 9. Bxf3 {[%clk 0:02:51]}  Nd7 {[%clk 0:02:50]} 10. e3 {[%clk 0:02:45]}  e5 {[%clk 0:02:50]} 11. d5 {[%clk 0:02:41]}  Ne7 {[%clk 0:02:42]} 12. Bg2 {[%clk 0:02:31]}  f5 {[%clk 0:02:40]} 13. Qc2 {[%clk 0:02:28]}  e4 {[%clk 0:02:38]} 14. Ne2 {[%clk 0:02:25]}  Nc5 {[%clk 0:02:02]} 15. Nd4 {[%clk 0:02:19]}  a5 {[%clk 0:01:56]} 16. Bd2 {[%clk 0:02:17]}  c6 {[%clk 0:01:50]} 17. dxc6 {[%clk 0:02:10]}  Nxc6 {[%clk 0:01:46]} 18. Bc3 {[%clk 0:02:10]}  Nxd4 {[%clk 0:01:40]} 19. exd4 {[%clk 0:02:08]}  Ne6 {[%clk 0:01:38]} 20. Rad1 {[%clk 0:02:06]}  Qb6 {[%clk 0:01:36]} 21. Qd2 {[%clk 0:01:33]}  Rfc8 {[%clk 0:01:30]} 22. b3 {[%clk 0:01:29]}  a4 {[%clk 0:01:20]} 23. Qb2 {[%clk 0:01:05]}  axb3 {[%clk 0:01:09]} 24. axb3 {[%clk 0:01:06]}  Qc7 {[%clk 0:00:50]} 25. Rfe1 {[%clk 0:00:58]}  b5 {[%clk 0:00:48]} 26. Bf1 {[%clk 0:00:58]}  Rab8 {[%clk 0:00:27]} 27. Qd2 {[%clk 0:00:50]}  b4 {[%clk 0:00:23]} 28. Bb2 {[%clk 0:00:49]}  Qb6 {[%clk 0:00:22]} 29. f3 {[%clk 0:00:47]}  Rf8 {[%clk 0:00:13]} 30. fxe4 {[%clk 0:00:45]}  f4 {[%clk 0:00:13]} 31. g4 {[%clk 0:00:31]}  Ra8 {[%clk 0:00:13]} 32. Qf2 {[%clk 0:00:26]}  Ra2 {[%clk 0:00:13]} 33. Re2 {[%clk 0:00:26]}  f3 {[%clk 0:00:09]} 34. Rc2 {[%clk 0:00:22]}  Rxb2 {[%clk 0:00:01]} 35. Rxb2 {[%clk 0:00:21]}  Bxd4 {[%clk 0:00:02]} 36. Rxd4 {[%clk 0:00:21]}  Qxd4 {[%clk 0:00:03]} 37. Rd2 {[%clk 0:00:19]}  Qxf2+ {[%clk 0:00:03]} 38. Kxf2 {[%clk 0:00:20]}  Rd8 {[%clk 0:00:03]} 39. Kxf3 {[%clk 0:00:19]}  Nc5 {[%clk 0:00:04]} 40. Rb2 {[%clk 0:00:13]}  Rf8+ {[%clk 0:00:05]} 41. Kg2 {[%clk 0:00:13]}  Nxe4 {[%clk 0:00:05]} 42. Bd3 {[%clk 0:00:13]}  Nc5 {[%clk 0:00:05]} 43. Be2 {[%clk 0:00:14]}  Ra8 {[%clk 0:00:05]} 44. Bf3 {[%clk 0:00:12]}  Ra3 {[%clk 0:00:05]} 45. Bd5+ {[%clk 0:00:12]}  Kg7 {[%clk 0:00:06]} 46. Rf2 {[%clk 0:00:13]}  Ra7 {[%clk 0:00:04]} 47. Rf3 {[%clk 0:00:12]}  Re7 {[%clk 0:00:03]} 48. g5 {[%clk 0:00:12]}  h6 {[%clk 0:00:03]} 49. h4 {[%clk 0:00:13]}  hxg5 {[%clk 0:00:03]} 50. hxg5 {[%clk 0:00:14]}  Re5 {[%clk 0:00:02]} 51. Rf7+ {[%clk 0:00:14]}  Kh8 {[%clk 0:00:02]} 52. Rf8+ {[%clk 0:00:14]}  Kg7 {[%clk 0:00:02]} 53. Rf7+ {[%clk 0:00:14]}  Kg8 {[%clk 0:00:02]} 54. Rd7+ {[%clk 0:00:10]}  Kf8 {[%clk 0:00:02]} 55. Rxd6 {[%clk 0:00:10]}  Rxg5+ {[%clk 0:00:02]} 56. Kf3 {[%clk 0:00:09]}  Nxb3 {[%clk 0:00:03]} 57. Rb6 {[%clk 0:00:08]}  Rf5+ {[%clk 0:00:03]} 58. Kg4 {[%clk 0:00:07]}  Nd4 {[%clk 0:00:03]} 59. Rxb4 {[%clk 0:00:07]}  Ke7 {[%clk 0:00:03]} 60. Rb7+ {[%clk 0:00:07]}  Kd6 {[%clk 0:00:04]} 61. Rb6+ {[%clk 0:00:08]}  Kc5 {[%clk 0:00:04]} 62. Rxg6 {[%clk 0:00:08]}  Rf1 {[%clk 0:00:03]} 63. Ra6 {[%clk 0:00:07]}  Rg1+ {[%clk 0:00:04]} 64. Kf4 {[%clk 0:00:08]}  Rf1+ {[%clk 0:00:04]} 65. Ke3 {[%clk 0:00:08]}  Re1+ {[%clk 0:00:05]} 66. Kd3 {[%clk 0:00:08]}  Rd1+ {[%clk 0:00:05]} 67. Kc3 {[%clk 0:00:08]}  Ne2+ {[%clk 0:00:06]} 68. Kc2 {[%clk 0:00:08]}  Rg1 {[%clk 0:00:06]} 69. Rc6+ {[%clk 0:00:08]}  Kb4 {[%clk 0:00:04]} 70. Rb6+ {[%clk 0:00:08]}  Kc5 {[%clk 0:00:04]} 71. Rb5+ {[%clk 0:00:08]}  Kd4 {[%clk 0:00:05]} 72. Rb8 {[%clk 0:00:04]}  Nc3 {[%clk 0:00:04]} 73. Re8 {[%clk 0:00:02]}  Nxd5 {[%clk 0:00:03]} 74. cxd5 {[%clk 0:00:02]}  Kxd5 {[%clk 0:00:04]} 75. Rd8+ {[%clk 0:00:03]}  Kc6 {[%clk 0:00:04]} 76. Rd2 {[%clk 0:00:04]}  Rg5 {[%clk 0:00:04]} 77. Rd3 {[%clk 0:00:04]}  Rc5+ {[%clk 0:00:05]} 78. Rc3 {[%clk 0:00:05]}  Kb5 {[%clk 0:00:04]} 79. Rxc5+ {[%clk 0:00:05]}  Kxc5 {[%clk 0:00:05]} 1/2-1/2


[Site "https://www.chess.com"]

[Event "Titled Tuesday Blitz January 17 Early 2023"]
[White "Krstulovic, Alex"]
[Black "Carnicelli, Valerio"]
[WhiteFideId "760056"]
[BlackFideId "856185"]
[WhiteElo "2428"]
[BlackElo "2370"]
[Result "0-1"]
[Round "05"]
[TimeControl "180+2"]
[Date "2023.01.17"]
[WhiteClock "0:00:01"]
[BlackClock "0:00:52"]

1. e4 {[%clk 0:03:00]}  e6 {[%clk 0:03:00]} 2. d4 {[%clk 0:03:00]}  d5 {[%clk 0:03:01]} 3. e5 {[%clk 0:03:01]}  c5 {[%clk 0:03:01]} 4. c3 {[%clk 0:03:00]}  Nc6 {[%clk 0:03:01]} 5. Nf3 {[%clk 0:03:00]}  Qb6 {[%clk 0:03:01]} 6. Be2 {[%clk 0:03:00]}  Bd7 {[%clk 0:02:58]} 7. O-O {[%clk 0:03:00]}  cxd4 {[%clk 0:02:51]} 8. cxd4 {[%clk 0:03:01]}  Nh6 {[%clk 0:02:51]} 9. Bxh6 {[%clk 0:02:38]}  Qxb2 {[%clk 0:02:51]} 10. Nbd2 {[%clk 0:02:38]}  gxh6 {[%clk 0:02:51]} 11. Rb1 {[%clk 0:02:38]}  Qxa2 {[%clk 0:02:51]} 12. Rxb7 {[%clk 0:02:38]}  Rb8 {[%clk 0:02:51]} 13. Rxb8+ {[%clk 0:02:36]}  Nxb8 {[%clk 0:02:52]} 14. Qa1 {[%clk 0:02:28]}  Qxa1 {[%clk 0:02:50]} 15. Rxa1 {[%clk 0:02:28]}  Nc6 {[%clk 0:02:45]} 16. Bb5 {[%clk 0:02:26]}  Bb4 {[%clk 0:02:39]} 17. Bxc6 {[%clk 0:02:21]}  Bxc6 {[%clk 0:02:40]} 18. Rxa7 {[%clk 0:02:21]}  O-O {[%clk 0:02:39]} 19. Nf1 {[%clk 0:02:15]}  Ra8 {[%clk 0:02:32]} 20. Rxa8+ {[%clk 0:01:49]}  Bxa8 {[%clk 0:02:33]} 21. Ng3 {[%clk 0:01:49]}  Bc6 {[%clk 0:02:18]} 22. Nh5 {[%clk 0:01:49]}  Ba4 {[%clk 0:02:16]} 23. h3 {[%clk 0:01:37]}  Bc3 {[%clk 0:02:13]} 24. Nf6+ {[%clk 0:01:23]}  Kg7 {[%clk 0:02:12]} 25. Nh5+ {[%clk 0:01:23]}  Kh8 {[%clk 0:02:07]} 26. Nh2 {[%clk 0:01:07]}  Bd1 {[%clk 0:02:00]} 27. f3 {[%clk 0:00:47]}  Bxd4+ {[%clk 0:01:59]} 28. Kf1 {[%clk 0:00:47]}  Bxe5 {[%clk 0:01:56]} 29. Ng4 {[%clk 0:00:47]}  Bg7 {[%clk 0:01:52]} 30. Nf4 {[%clk 0:00:45]}  Bc2 {[%clk 0:01:48]} 31. Ke2 {[%clk 0:00:45]}  Ba4 {[%clk 0:01:39]} 32. Ke3 {[%clk 0:00:42]}  Bb5 {[%clk 0:01:38]} 33. Nh5 {[%clk 0:00:40]}  Bf1 {[%clk 0:01:22]} 34. Kf2 {[%clk 0:00:34]}  Bd3 {[%clk 0:01:22]} 35. Ke3 {[%clk 0:00:34]}  Bg6 {[%clk 0:01:22]} 36. Nf4 {[%clk 0:00:33]}  h5 {[%clk 0:01:19]} 37. Nxg6+ {[%clk 0:00:13]}  hxg6 {[%clk 0:01:20]} 38. Nf2 {[%clk 0:00:13]}  Bf8 {[%clk 0:01:16]} 39. Nd3 {[%clk 0:00:13]}  Bd6 {[%clk 0:01:16]} 40. g4 {[%clk 0:00:12]}  e5 {[%clk 0:01:10]} 41. Ke2 {[%clk 0:00:09]}  Kg7 {[%clk 0:01:10]} 42. Ne1 {[%clk 0:00:08]}  Kf6 {[%clk 0:01:09]} 43. Ng2 {[%clk 0:00:08]}  hxg4 {[%clk 0:01:09]} 44. hxg4 {[%clk 0:00:08]}  Kg5 {[%clk 0:01:09]} 45. Kd3 {[%clk 0:00:07]}  Bc5 {[%clk 0:01:08]} 46. Ke2 {[%clk 0:00:05]}  e4 {[%clk 0:01:03]} 47. Ne1 {[%clk 0:00:05]}  Kf4 {[%clk 0:01:00]} 48. fxe4 {[%clk 0:00:04]}  dxe4 {[%clk 0:01:00]} 49. g5 {[%clk 0:00:04]}  Kxg5 {[%clk 0:01:00]} 50. Ng2 {[%clk 0:00:04]}  Kg4 {[%clk 0:01:00]} 51. Kf1 {[%clk 0:00:04]}  f5 {[%clk 0:00:59]} 52. Ne1 {[%clk 0:00:04]}  f4 {[%clk 0:01:00]} 53. Kg2 {[%clk 0:00:05]}  f3+ {[%clk 0:00:59]} 54. Kf1 {[%clk 0:00:05]}  Kf4 {[%clk 0:00:53]} 55. Nc2 {[%clk 0:00:05]}  g5 {[%clk 0:00:52]} 56. Ne1 {[%clk 0:00:05]}  g4 {[%clk 0:00:52]} 57. Nc2 {[%clk 0:00:01]}  g3 {[%clk 0:00:52]} 58. Ne1 {[%clk 0:00:01]}  g2+ {[%clk 0:00:52]} 0-1


[Site "https://www.chess.com"]